bitfinex-derivatives/quotes_BTCF0:USTF0_20260106
["timestamp","ask_amount","ask_price","bid_price","bid_amount"]
[1767738166977,0.0796547,93126.0,93105.0,0.09136]
[1767738166978,0.010743,93126.0,93113.0,0.010744]
[1767738168691,0.10367945,93126.0,93113.0,0.010744]
[1767738168880,0.010742,93128.0,93110.0,0.03004244]
[1767738169382,0.09293645,93132.0,93122.0,0.010743]
[1767738169587,0.010742,93134.0,93119.0,0.010743]
[1767738169779,0.10077867,93130.0,93120.0,0.010743]
[1767738172488,0.09293645,93133.0,93120.0,0.010743]
[1767738172988,0.17259115,93133.0,93120.0,0.010743]
[1767738173688,0.09293645,93132.0,93120.0,0.010743]
[1767738174680,0.17259115,93132.0,93120.0,0.010743]
[1767738174881,0.09293645,93131.0,93120.0,0.010743]
[1767738179291,0.09293645,93131.0,93117.0,0.09136]
[1767738179488,0.09847187,93130.0,93117.0,0.09136]
[1767738180293,0.09847187,93130.0,93118.0,0.010743]
[1767738181093,0.06990677,93129.0,93118.0,0.010743]
[1767738181290,0.10092625,93128.0,93117.0,0.09136]
[1767738181488,0.010743,93125.0,93117.0,0.09136]
[1767738181691,0.10092625,93128.0,93117.0,0.09136]
[1767738182596,0.09018425,93128.0,93117.0,0.09136]
[1767738184186,0.09018425,93128.0,93106.0,0.010745]
[1767738184187,0.09018425,93124.0,93111.0,0.010744]
[1767738184386,0.15674654,93124.0,93111.0,0.010744]
[1767738184588,0.09018425,93123.0,93111.0,0.010744]
[1767738185197,0.15674654,93121.0,93108.0,0.102105]
[1767738185501,0.09018425,93120.0,93108.0,0.102105]
[1767738186297,0.07730529,93124.0,93108.0,0.102105]
[1767738186495,0.06656229,93124.0,93108.0,0.102105]
[1767738187188,0.15674654,93124.0,93108.0,0.102105]
[1767738187389,0.15674654,93124.0,93111.0,0.010744]
[1767738187597,0.09018425,93124.0,93111.0,0.010744]
[1767738187797,0.09018425,93124.0,93108.0,0.102105]
[1767738190100,0.10092725,93123.0,93108.0,0.09136]
[1767738190293,0.09018425,93123.0,93108.0,0.102105]
[1767738192705,0.09018425,93123.0,93110.0,0.010744]
[1767738193903,0.09018425,93123.0,93108.0,0.09136]
[1767738194709,0.010743,93122.0,93108.0,0.09136]
[1767738194901,0.010743,93120.0,93108.0,0.09136]
[1767738195208,0.09018425,93122.0,93108.0,0.102105]
[1767738195906,0.09018425,93122.0,93110.0,0.010744]
[1767738196608,0.010743,93124.0,93110.0,0.010744]
[1767738197906,0.09018425,93126.0,93113.0,0.010744]
[1767738198912,0.09018425,93138.0,93126.0,0.010742]
[1767738199219,0.09018425,93143.0,93127.0,0.00759616]
[1767738199418,0.09018425,93143.0,93131.0,0.010742]
[1767738201112,0.15674654,93143.0,93131.0,0.010742]
[1767738201312,0.09018425,93142.0,93131.0,0.010742]
[1767738201619,0.09018425,93141.0,93128.0,0.102102]
[1767738202512,0.09018425,93140.0,93128.0,0.102102]
[1767738202718,0.09018425,93139.0,93128.0,0.102102]
[1767738203021,0.09018425,93139.0,93130.0,0.010742]
[1767738204313,0.06656229,93142.0,93130.0,0.010742]
[1767738204514,0.09018425,93140.0,93128.0,0.09136]
[1767738204909,0.09018425,93140.0,93129.0,0.010742]
[1767738206320,0.010739,93157.0,93128.0,0.09136]
[1767738206321,0.07730029,93165.0,93145.0,0.00444696]
[1767738206507,0.06656229,93155.0,93146.0,0.09136]
[1767738206708,0.01755591,93165.0,93146.0,0.09136]
[1767738206907,0.010737,93171.0,93156.0,0.010739]
[1767738207108,0.01697332,93171.0,93158.0,0.010739]
[1767738207406,0.010737,93174.0,93158.0,0.010739]
[1767738208317,0.09018425,93173.0,93158.0,0.010739]
[1767738208617,0.15674654,93172.0,93160.0,0.010738]
[1767738208817,0.15674654,93171.0,93160.0,0.010738]
[1767738209116,0.15674654,93170.0,93160.0,0.010738]
[1767738209510,0.15674654,93170.0,93157.0,0.102099]
[1767738210119,0.15674654,93168.0,93157.0,0.09136]
[1767738210921,0.15674654,93167.0,93157.0,0.09136]
[1767738211510,0.06340514,93161.0,93144.0,0.51264]
[1767738211715,0.15890198,93155.0,93145.0,0.09136]
[1767738212019,0.15890198,93155.0,93148.0,0.01074]
[1767738212020,0.09549684,93155.0,93148.0,0.01074]
[1767738212210,0.09549684,93155.0,93149.0,0.09136]
[1767738212411,0.15890198,93159.0,93149.0,0.09136]
[1767738212610,0.15890198,93159.0,93150.0,0.01074]
[1767738213018,0.09549684,93159.0,93152.0,0.010739]
[1767738213925,0.09549684,93165.0,93149.0,0.09136]
[1767738214118,0.01711292,93174.0,93150.0,0.06619555]
[1767738214119,0.15890198,93170.0,93150.0,0.06619555]
[1767738214419,0.15890198,93169.0,93150.0,0.06619555]
[1767738214622,0.15890198,93168.0,93154.0,0.010739]
[1767738214825,0.15890198,93167.0,93154.0,0.010739]
[1767738215309,0.06340514,93167.0,93154.0,0.010739]
[1767738215513,0.09549684,93166.0,93154.0,0.010739]
[1767738216222,0.09549684,93166.0,93156.0,0.010739]
[1767738217623,0.09549684,93166.0,93153.0,0.010739]
[1767738217825,0.15890198,93166.0,93153.0,0.010739]
[1767738219323,0.06340514,93164.0,93153.0,0.010739]
[1767738219533,0.09549684,93149.0,93137.0,0.09132]
[1767738219718,0.010738,93169.0,93138.0,0.102061]
[1767738219719,0.09549684,93146.0,93138.0,0.102061]
[1767738220030,0.09549684,93146.0,93139.0,0.09132]
[1767738220536,0.09549684,93146.0,93140.0,0.09132]
[1767738221227,0.09549684,93146.0,93141.0,0.02511462]
[1767738221527,0.06340514,93143.0,93137.0,0.06668109]
[1767738221720,0.06340514,93143.0,93137.0,0.09132]
[1767738222825,0.06340514,93143.0,93131.0,0.010742]
[1767738223019,0.102058,93163.0,93131.0,0.09132]
[1767738223020,0.06340514,93138.0,93131.0,0.09132]
[1767738223216,0.06340514,93138.0,93120.0,0.92092]
[1767738223217,0.06340514,93135.0,93123.0,0.09132]
[1767738223425,0.06340514,93135.0,93123.0,0.02420802]
[1767738226023,0.07414614,93143.0,93124.0,0.09530432]
[1767738227023,0.06340514,93141.0,93125.0,0.010743]
[1767738229118,0.09132,93153.0,93123.0,0.02420802]
[1767738229119,0.06340514,93152.0,93128.0,0.09530432]
[1767738229318,0.01074,93146.0,93128.0,0.09530432]
[1767738229631,0.07414514,93146.0,93128.0,0.09530432]
[1767738229832,0.07414514,93146.0,93131.0,0.010742]
[1767738230027,0.01074,93144.0,93128.0,0.10604632]
[1767738230234,0.06340514,93146.0,93130.0,0.010742]
[1767738230426,0.01074,93145.0,93130.0,0.010742]
[1767738231524,0.07414514,93145.0,93130.0,0.010742]
[1767738232529,0.15890198,93144.0,93130.0,0.010742]
[1767738232727,0.06340514,93144.0,93130.0,0.010742]
[1767738233342,0.06340514,93144.0,93131.0,0.010742]
[1767738234631,0.06340514,93144.0,93128.0,0.10604632]
[1767738234828,0.06340514,93144.0,93128.0,0.09530432]
[1767738235028,0.06340514,93144.0,93131.0,0.010742]
[1767738236332,0.07414514,93144.0,93131.0,0.010742]
[1767738237332,0.15890198,93136.0,93123.0,0.02420802]
[1767738237538,0.06340514,93137.0,93127.0,0.010742]
[1767738238039,0.07183823,93142.0,93128.0,0.010742]
[1767738238227,0.07183823,93142.0,93130.0,0.010742]
[1767738240733,0.07183823,93142.0,93123.0,0.02420802]
[1767738241238,0.07183823,93142.0,93129.0,0.010742]
[1767738241740,0.08257923,93142.0,93129.0,0.010742]
[1767738242740,0.07183823,93142.0,93123.0,0.11967784]
[1767738243343,0.07183823,93142.0,93132.0,0.010742]
[1767738243644,0.03183823,93142.0,93132.0,0.010742]
[1767738243943,0.01074,93147.0,93132.0,0.010742]
[1767738244849,0.09183783,93146.0,93132.0,0.010742]
[1767738245536,0.07929109,93145.0,93132.0,0.010742]
[1767738247647,0.03929109,93145.0,93132.0,0.010742]
[1767738247850,0.01074,93145.0,93132.0,0.010742]
[1767738248347,0.10257783,93145.0,93132.0,0.010742]
[1767738248746,0.10257783,93145.0,93124.0,0.10975651]
[1767738249152,0.06257783,93145.0,93133.0,0.010742]
[1767738249648,0.05616755,93144.0,93133.0,0.010742]
[1767738250442,0.06748588,93143.0,93124.0,0.17561482]
[1767738250641,0.05674488,93143.0,93133.0,0.010742]
[1767738252242,0.05503961,93145.0,93134.0,0.010741]
[1767738253237,0.05427586,93150.0,93132.0,0.06585831]
[1767738253438,0.05427586,93152.0,93136.0,0.010741]
[1767738254155,0.05351457,93151.0,93136.0,0.010741]
[1767738254545,0.10075254,93150.0,93136.0,0.010741]
[1767738255147,0.01074,93149.0,93136.0,0.010741]
[1767738255444,0.10075254,93150.0,93139.0,0.010741]
[1767738255641,0.01074,93152.0,93139.0,0.010741]
[1767738256254,0.010739,93160.0,93145.0,0.01074]
[1767738256453,0.01366615,93159.0,93145.0,0.01074]
[1767738256856,0.01366615,93158.0,93145.0,0.01074]
[1767738257050,0.01290697,93157.0,93145.0,0.01074]
[1767738259460,0.01290697,93157.0,93142.0,0.010741]
[1767738260954,0.01290697,93157.0,93144.0,0.01074]
[1767738261162,0.010738,93165.0,93152.0,0.010739]
[1767738261459,0.02151989,93168.0,93154.0,0.010739]
[1767738262359,0.01018545,93167.0,93154.0,0.010739]
[1767738262667,0.010738,93166.0,93154.0,0.010739]
[1767738263051,0.09136,93172.0,93157.0,0.06585831]
[1767738263254,0.010738,93169.0,93156.0,0.010739]
[1767738263458,0.02017585,93169.0,93153.0,0.010739]
[1767738263854,0.09136,93172.0,93155.0,0.010739]
[1767738264048,0.09136,93172.0,93150.0,0.16661085]
[1767738264049,0.09136,93172.0,93158.0,0.09901351]
[1767738265364,0.010738,93169.0,93155.0,0.010739]
[1767738265559,0.09136,93172.0,93160.0,0.09901351]
[1767738265860,0.01711292,93174.0,93161.0,0.06585831]
[1767738266065,0.00214642,93179.0,93162.0,0.09901351]
[1767738266461,0.00834193,93178.0,93162.0,0.09901351]
[1767738266768,0.00214642,93179.0,93162.0,0.09901351]
[1767738266955,0.00214642,93179.0,93170.0,0.010737]
[1767738267153,0.00214642,93179.0,93168.0,0.09901351]
[1767738267356,0.00760046,93187.0,93169.0,0.10075254]
[1767738267563,0.00760046,93187.0,93173.0,0.010737]
[1767738267564,0.01740791,93187.0,93173.0,0.010737]
[1767738267762,0.010735,93188.0,93173.0,0.010737]
[1767738267961,0.410735,93188.0,93173.0,0.010737]
[1767738268460,0.00697727,93190.0,93177.0,0.010737]
[1767738268651,0.010735,93192.0,93174.0,0.09901351]
[1767738269256,0.010735,93190.0,93175.0,0.010737]
[1767738269459,0.02870084,93190.0,93175.0,0.010737]
[1767738270063,0.010735,93188.0,93174.0,0.09901351]
[1767738270460,0.02364544,93190.0,93177.0,0.010737]
[1767738270665,0.01796584,93190.0,93177.0,0.010737]
[1767738270968,0.01568199,93193.0,93177.0,0.010737]
[1767738272570,0.00494699,93193.0,93179.0,0.010736]
[1767738272768,0.02301003,93193.0,93179.0,0.010736]
[1767738272971,0.02301003,93193.0,93181.0,0.010736]
[1767738273172,0.02301003,93193.0,93178.0,0.010736]
[1767738273470,0.01806304,93193.0,93180.0,0.010736]
[1767738273671,0.00392644,93195.0,93180.0,0.11148854]
[1767738274773,0.00325007,93196.0,93180.0,0.09261026]
[1767738274974,0.00325007,93196.0,93179.0,0.010736]
[1767738276178,0.010735,93194.0,93179.0,0.010736]
[1767738278884,0.00325007,93196.0,93179.0,0.010736]
[1767738279591,0.00325007,93196.0,93176.0,0.010737]
[1767738280393,0.010735,93190.0,93176.0,0.010737]
[1767738281491,0.010735,93192.0,93180.0,0.09261026]
[1767738282284,0.010735,93190.0,93178.0,0.010736]
[1767738283193,0.010735,93193.0,93178.0,0.10334626]
[1767738284496,0.010735,93193.0,93179.0,0.010736]
[1767738284991,0.010735,93191.0,93179.0,0.010736]
[1767738285597,0.010735,93191.0,93180.0,0.15689468]
[1767738285793,0.010735,93191.0,93180.0,0.09261026]
[1767738286992,0.09864211,93225.0,93200.0,0.06428442]
[1767738287196,0.10075254,93220.0,93205.0,0.06428442]
[1767738287501,0.10075254,93220.0,93202.0,0.010734]
[1767738287699,0.010732,93218.0,93202.0,0.010734]
[1767738287997,0.11894229,93220.0,93204.0,0.010733]
[1767738288194,0.11894229,93220.0,93199.0,0.06428442]
[1767738288596,0.11894229,93220.0,93207.0,0.010733]
[1767738289299,0.01818975,93220.0,93207.0,0.010733]
[1767738289601,0.10075254,93220.0,93207.0,0.010733]
[1767738290294,0.10075254,93220.0,93209.0,0.010733]
[1767738290797,0.10075254,93220.0,93208.0,0.010733]
[1767738291600,0.01759946,93223.0,93211.0,0.010733]
[1767738291902,0.09132,93225.0,93211.0,0.010733]
[1767738292091,0.10876846,93225.0,93211.0,0.010733]
[1767738292800,0.010731,93224.0,93210.0,0.10075254]
[1767738292996,0.010731,93224.0,93208.0,0.10334326]
[1767738293303,0.010731,93224.0,93210.0,0.10075254]
[1767738293705,0.01744846,93225.0,93210.0,0.10075254]
[1767738293896,0.00068475,93228.0,93210.0,0.10075254]
[1767738294101,0.01882311,93228.0,93214.0,0.010732]
[1767738295102,0.010731,93227.0,93211.0,0.010733]
[1767738295298,0.09864211,93251.0,93224.0,0.15689468]
[1767738295503,0.010729,93244.0,93227.0,0.06428442]
[1767738295703,0.010729,93247.0,93227.0,0.06428442]
[1767738295899,0.09864211,93249.0,93231.0,0.06428442]
[1767738296199,0.010728,93254.0,93238.0,0.07501442]
[1767738296397,0.09864211,93254.0,93235.0,0.01073]
[1767738296599,0.09864211,93254.0,93238.0,0.01073]
[1767738296802,0.09864211,93254.0,93234.0,0.01073]
[1767738297001,0.11602869,93254.0,93234.0,0.07501442]
[1767738297706,0.11602869,93254.0,93238.0,0.010729]
[1767738298301,0.12675669,93254.0,93235.0,0.01073]
[1767738300311,0.010729,93247.0,93230.0,0.10075254]
[1767738300604,0.10937011,93251.0,93234.0,0.01073]
[1767738301307,0.10937011,93251.0,93224.0,0.09128]
[1767738301308,0.010729,93243.0,93225.0,0.010731]
[1767738301503,0.010729,93243.0,93226.0,0.09128]
[1767738301899,0.010729,93246.0,93229.0,0.05773464]
[1767738302102,0.01738658,93254.0,93242.0,0.05773464]
[1767738302308,0.09459912,93258.0,93236.0,0.15085364]
[1767738302509,0.010728,93251.0,93235.0,0.01073]
[1767738303203,0.010728,93251.0,93235.0,0.07226522]
[1767738303508,0.010728,93254.0,93236.0,0.06153522]
[1767738303894,0.01751632,93254.0,93243.0,0.010729]
[1767738304094,0.010727,93259.0,93243.0,0.010729]
[1767738304609,0.01791054,93259.0,93242.0,0.06153522]
[1767738304907,0.010727,93263.0,93247.0,0.010728]
[1767738305103,0.01757847,93267.0,93249.0,0.09014994]
[1767738305310,0.00214435,93269.0,93257.0,0.010727]
[1767738305502,0.010725,93274.0,93257.0,0.010727]
[1767738305707,0.07304278,93274.0,93257.0,0.010727]
[1767738305905,0.010726,93271.0,93256.0,0.09128]
[1767738306100,0.07304378,93273.0,93257.0,0.010727]
[1767738306301,0.09070066,93273.0,93257.0,0.010727]
[1767738308314,0.07997466,93273.0,93256.0,0.102007]
[1767738308514,0.01765688,93273.0,93258.0,0.10087694]
[1767738308708,0.010725,93278.0,93261.0,0.09014994]
[1767738309212,0.010725,93276.0,93261.0,0.09014994]
[1767738309710,0.01744777,93276.0,93262.0,0.010727]
[1767738309911,0.010725,93279.0,93262.0,0.010727]
[1767738310109,0.010724,93290.0,93269.0,0.19090248]
[1767738310311,0.01765016,93290.0,93274.0,0.09014994]
[1767738310518,0.010723,93293.0,93273.0,0.06153522]
[1767738310807,0.06231778,93295.0,93277.0,0.010725]
[1767738311010,0.010723,93292.0,93274.0,0.010725]
[1767738311222,0.06231778,93295.0,93280.0,0.10075254]
[1767738311223,0.010723,93294.0,93280.0,0.10075254]
[1767738311410,0.010723,93294.0,93281.0,0.09124]
[1767738311411,0.07304078,93294.0,93281.0,0.09124]
[1767738311604,0.07304178,93284.0,93261.0,0.06153522]
[1767738311803,0.07304178,93284.0,93266.0,0.010726]
[1767738312204,0.06231778,93285.0,93260.0,0.10075254]
[1767738312418,0.07304378,93273.0,93254.0,0.010728]
[1767738312709,0.07304278,93278.0,93261.0,0.010727]
[1767738312910,0.010725,93278.0,93261.0,0.10087694]
[1767738313504,0.010725,93278.0,93262.0,0.15168516]
[1767738313905,0.10075254,93290.0,93266.0,0.06153522]
[1767738314102,0.10075254,93290.0,93270.0,0.10075254]
[1767738314307,0.06231778,93291.0,93270.0,0.10075254]
[1767738314718,0.06231778,93291.0,93270.0,0.2524377]
[1767738315317,0.06231778,93286.0,93264.0,0.09014994]
[1767738315620,0.010725,93280.0,93265.0,0.09124]
[1767738316916,0.010726,93268.0,93249.0,0.15168516]
[1767738317114,0.06231778,93264.0,93250.0,0.09124]
[1767738317319,0.010727,93259.0,93251.0,0.09124]
[1767738317815,0.010728,93251.0,93237.0,0.09014994]
[1767738318019,0.010726,93267.0,93238.0,0.09124]
[1767738318020,0.06231778,93255.0,93238.0,0.09124]
[1767738318217,0.010728,93252.0,93239.0,0.09124]
[1767738318415,0.010728,93252.0,93240.0,0.09124]
[1767738318618,0.010728,93252.0,93226.0,0.27976]
[1767738318619,0.15633457,93247.0,93226.0,0.09014994]
[1767738318917,0.15633457,93247.0,93199.0,0.36496]
[1767738318918,0.06231778,93237.0,93227.0,4.8e-07]
[1767738319122,0.010731,93230.0,93218.0,0.09124]
[1767738319325,0.010731,93230.0,93217.0,0.09124]
[1767738319527,0.01073,93236.0,93217.0,0.09124]
[1767738319822,0.010729,93240.0,93219.0,0.09014994]
[1767738320010,0.09401679,93241.0,93219.0,0.09014994]
[1767738320011,0.01073,93238.0,93219.0,0.09014994]
[1767738320317,0.15355778,93245.0,93222.0,0.15168516]
[1767738320512,0.15355778,93245.0,93223.0,0.09014994]
[1767738320826,0.010729,93243.0,93223.0,0.10088094]
[1767738321115,0.15355778,93245.0,93223.0,0.09014994]
[1767738321314,0.010729,93240.0,93219.0,0.010732]
[1767738321523,0.09401679,93243.0,93217.0,0.09124]
[1767738321524,0.010729,93243.0,93226.0,0.06153522]
[1767738321818,0.010729,93243.0,93227.0,0.09014994]
[1767738322321,0.010729,93243.0,93228.0,0.09124]
[1767738322722,0.010729,93247.0,93229.0,0.010731]
[1767738323726,0.010729,93245.0,93228.0,0.09124]
[1767738324518,0.010726,93267.0,93228.0,0.09124]
[1767738324519,0.09401679,93259.0,93236.0,0.09014994]
[1767738324820,0.010727,93258.0,93239.0,0.15168516]
[1767738325226,0.15355778,93262.0,93239.0,0.15168516]
[1767738325408,0.15355778,93262.0,93239.0,0.09014994]
[1767738325409,0.06231778,93261.0,93239.0,0.09014994]
[1767738325611,0.06231778,93257.0,93234.0,0.06153522]
[1767738325821,0.09124,93262.0,93231.0,0.09014994]
[1767738325822,0.010728,93249.0,93231.0,0.09014994]
[1767738326025,0.010728,93249.0,93232.0,0.09124]
[1767738326621,0.010728,93249.0,93232.0,0.18138994]
[1767738327018,0.010728,93249.0,93233.0,0.09014994]
[1767738327519,0.010728,93252.0,93234.0,0.15168516]
[1767738327718,0.010728,93252.0,93235.0,0.06153522]
[1767738327914,0.09124,93262.0,93244.0,0.09014994]
[1767738328113,0.010727,93258.0,93244.0,0.09014994]
[1767738329824,0.09124,93262.0,93245.0,0.09014994]
[1767738330123,0.010727,93264.0,93247.0,0.09014994]
[1767738330917,0.010727,93264.0,93248.0,0.09014994]
[1767738331317,0.010727,93264.0,93248.0,0.10087794]
[1767738332527,0.010727,93264.0,93249.0,0.09562331]
[1767738333214,0.06231778,93271.0,93249.0,0.09562331]
[1767738333420,0.010726,93269.0,93253.0,0.010728]
[1767738333627,0.18525679,93275.0,93253.0,0.10635131]
[1767738333927,0.06501644,93274.0,93253.0,0.09562331]
[1767738335726,0.010726,93268.0,93253.0,0.09562331]
[1767738337131,0.06501644,93274.0,93253.0,0.09562331]
[1767738337329,0.16195663,93271.0,93247.0,0.1712124]
[1767738337531,0.09124,93275.0,93247.0,0.1712124]
[1767738337532,0.06501644,93269.0,93247.0,0.1712124]
[1767738338125,0.010727,93263.0,93247.0,0.1604834]
[1767738338529,0.010727,93263.0,93248.0,0.010728]
[1767738339430,0.010727,93263.0,93248.0,0.10635131]
[1767738341531,0.010727,93263.0,93248.0,0.1712114]
[1767738343734,0.010727,93263.0,93249.0,0.09562331]
[1767738343934,0.010727,93263.0,93249.0,0.1604834]
[1767738344136,0.010727,93263.0,93250.0,0.09562331]
[1767738344336,0.09694019,93270.0,93250.0,0.1712114]
[1767738344337,0.010726,93266.0,93250.0,0.1712114]
[1767738344530,0.010726,93266.0,93252.0,0.06486009]
[1767738344933,0.010726,93266.0,93252.0,0.1604834]
[1767738345936,0.06501644,93279.0,93257.0,0.09562331]
[1767738346238,0.010726,93268.0,93257.0,0.09562331]
[1767738346839,0.010726,93271.0,93257.0,0.09562331]
[1767738347630,0.010726,93271.0,93258.0,0.06486009]
[1767738347829,0.010726,93271.0,93259.0,0.1604834]
[1767738348041,0.010726,93271.0,93260.0,0.1604834]
[1767738349940,0.010726,93269.0,93260.0,0.09562331]
[1767738350441,0.010726,93267.0,93256.0,0.06486009]
[1767738350637,0.010726,93270.0,93256.0,0.1604834]
[1767738350938,0.010726,93268.0,93256.0,0.1604834]
[1767738352830,0.010726,93268.0,93257.0,0.1604834]
[1767738353726,0.010726,93271.0,93258.0,0.09562331]
[1767738353932,0.010726,93271.0,93259.0,0.06486009]
[1767738354133,0.010726,93274.0,93260.0,0.1604834]
[1767738354442,0.09124,93280.0,93263.0,0.1712104]
[1767738354743,0.010726,93274.0,93263.0,0.1604834]
[1767738355140,0.010725,93276.0,93264.0,0.1604834]
[1767738355336,0.010725,93279.0,93264.0,0.1604834]
[1767738356249,0.010725,93277.0,93264.0,0.1604834]
[1767738356543,0.09124,93280.0,93264.0,0.1604834]
[1767738357146,0.09124,93280.0,93267.0,0.1604834]
[1767738357437,0.09124,93280.0,93267.0,0.09562331]
[1767738358640,0.09124,93280.0,93268.0,0.06005212]
[1767738358840,0.09124,93280.0,93268.0,0.15029381]
[1767738359042,0.09124,93280.0,93269.0,0.15029381]
[1767738359230,0.09124,93280.0,93263.0,0.09024169]
[1767738359435,0.010725,93279.0,93266.0,0.09024169]
[1767738361434,0.09124,93280.0,93215.0,0.09595568]
[1767738361435,0.06424559,93245.0,93215.0,0.09595568]
[1767738361638,0.09568294,93229.0,93204.0,0.05844113]
[1767738361932,0.09568294,93235.0,93209.0,0.09629075]
[1767738362134,0.010733,93213.0,93209.0,7.3e-07]
[1767738362337,0.09124,93212.0,93209.0,7.3e-07]
[1767738362535,0.09124,93211.0,93209.0,7.3e-07]
[1767738362741,0.09124,93210.0,93209.0,7.3e-07]
[1767738362937,0.10911446,93210.0,93209.0,7.3e-07]
[1767738365142,0.010734,93203.0,93188.0,0.15258615]
[1767738365341,0.09124,93202.0,93190.0,0.09414502]
[1767738365545,0.010734,93199.0,93187.0,0.00010426]
[1767738366255,0.06424559,93197.0,93171.0,0.05844113]
[1767738366440,0.07497959,93197.0,93172.0,0.06917813]
[1767738366846,0.010734,93197.0,93172.0,0.06917813]
[1767738367149,0.010735,93195.0,93172.0,0.06917813]
[1767738367343,0.010735,93195.0,93160.0,0.09124]
[1767738367344,0.010735,93191.0,93167.0,0.06917913]
[1767738367541,0.0913564,93190.0,93170.0,0.06917813]
[1767738367741,0.0913564,93190.0,93173.0,0.010737]
[1767738370050,0.0913564,93190.0,93172.0,0.09414502]
[1767738373849,0.15560199,93190.0,93166.0,0.15258615]
[1767738374243,0.010736,93186.0,93166.0,0.15258615]
[1767738374443,0.010736,93186.0,93167.0,0.09414502]
[1767738375040,0.010736,93183.0,93163.0,0.010738]
[1767738375245,0.06434208,93182.0,93161.0,0.010738]
[1767738375444,0.06434208,93182.0,93164.0,0.010738]
[1767738375655,9.649e-05,93182.0,93164.0,0.010738]
[1767738376753,9.649e-05,93182.0,93167.0,0.010738]
[1767738377656,9.649e-05,93182.0,93166.0,0.010738]
[1767738377951,0.010737,93178.0,93159.0,0.010739]
[1767738378156,0.010737,93176.0,93159.0,0.010739]
[1767738378656,0.010737,93176.0,93159.0,0.10488402]
[1767738378857,0.09138331,93177.0,93159.0,0.10488402]
[1767738380559,0.10212031,93177.0,93159.0,0.10488402]
[1767738381359,0.10212031,93177.0,93160.0,0.010738]
[1767738381360,0.09138331,93177.0,93160.0,0.010738]
[1767738381561,0.09138331,93177.0,93162.0,0.010738]
[1767738381958,0.09138331,93177.0,93164.0,0.010738]
[1767738382460,0.09138331,93177.0,93160.0,0.010738]
[1767738382759,0.09138331,93177.0,93162.0,0.010738]
[1767738384557,0.10072109,93172.0,93162.0,0.010738]
[1767738385059,0.10072109,93172.0,93157.0,0.05844113]
[1767738385060,0.10072109,93172.0,93161.0,0.010738]
[1767738385852,0.10072109,93172.0,93154.0,0.09414502]
[1767738386154,0.00012992,93171.0,93159.0,0.010739]
[1767738386356,0.00012992,93171.0,93157.0,0.09414502]
[1767738386555,0.00012992,93171.0,93161.0,0.010738]
[1767738386758,0.00012992,93171.0,93158.0,0.010739]
[1767738387759,0.00012992,93171.0,93160.0,0.010739]
[1767738388163,0.00012992,93171.0,93152.0,0.09128]
[1767738388164,0.10072109,93170.0,93162.0,0.010738]
[1767738388553,0.00012992,93171.0,93162.0,0.010738]
[1767738392952,9.2e-07,93171.0,93166.0,0.10377777]
[1767738393152,9.2e-07,93171.0,93166.0,0.09303977]
[1767738393367,0.09132,93180.0,93174.0,0.010737]
[1767738393566,0.09132,93181.0,93175.0,0.14645959]
[1767738393860,0.05890762,93181.0,93175.0,0.09303977]
[1767738394059,0.05890762,93181.0,93173.0,0.010737]
[1767738396368,0.09132,93187.0,93183.0,0.010736]
[1767738396554,0.010734,93199.0,93183.0,0.010736]
[1767738396555,0.09132,93189.0,93183.0,0.010736]
[1767738396957,0.09132,93189.0,93180.0,0.010736]
[1767738398656,0.09132,93189.0,93173.0,0.09303977]
[1767738399067,0.09132,93189.0,93173.0,0.14645959]
[1767738399962,0.09819853,93193.0,93181.0,0.010736]
[1767738400266,0.09132,93192.0,93181.0,0.010736]
[1767738406567,0.09819853,93181.0,93159.0,0.05341982]
[1767738406774,0.09819853,93180.0,93171.0,0.010737]
[1767738407071,0.05836736,93185.0,93171.0,0.010737]
[1767738407370,0.06910336,93185.0,93171.0,0.010737]
[1767738407671,0.05836736,93185.0,93173.0,0.010737]
[1767738409078,0.05836736,93185.0,93165.0,0.05341982]
[1767738409275,0.15656589,93183.0,93161.0,0.15719759]
[1767738409572,0.15656589,93183.0,93163.0,0.05341982]
[1767738409768,0.15656589,93183.0,93169.0,0.010737]
[1767738410571,0.10068939,93180.0,93169.0,0.010737]
[1767738419965,0.24788589,93183.0,93163.0,0.05341982]
[1767738420171,0.10068939,93180.0,93163.0,0.05341982]
[1767738420770,0.10068939,93180.0,93171.0,0.010737]
[1767738421171,0.10068939,93180.0,93163.0,0.05341982]
[1767738421376,0.10068939,93180.0,93173.0,0.010737]
[1767738421676,0.09132,93183.0,93167.0,0.06553086]
[1767738421881,0.09132,93183.0,93175.0,0.010737]
[1767738422377,0.09132,93183.0,93172.0,0.010737]
[1767738422570,0.14545685,93183.0,93172.0,0.010737]
[1767738423579,0.010734,93203.0,93186.0,0.010735]
[1767738423882,0.09935381,93195.0,93180.0,0.010736]
[1767738424081,0.2000432,93190.0,93180.0,0.010736]
[1767738425073,0.09935381,93190.0,93174.0,0.09132]
[1767738425275,0.2000432,93190.0,93180.0,0.010736]
[1767738425470,0.09935381,93190.0,93180.0,0.010736]
[1767738425675,0.09935381,93190.0,93174.0,0.09132]
[1767738425877,0.09935381,93190.0,93179.0,0.010736]
[1767738426286,0.09935381,93190.0,93175.0,0.010737]
[1767738426474,0.05413685,93189.0,93175.0,0.010737]
[1767738426674,0.15349066,93189.0,93177.0,0.010737]
[1767738429585,0.15349066,93189.0,93179.0,0.010736]
[1767738429784,0.15349066,93192.0,93179.0,0.010736]
[1767738430282,0.05413685,93191.0,93179.0,0.010736]
[1767738431176,0.15349066,93191.0,93179.0,0.010736]
[1767738432082,0.15349066,93191.0,93174.0,0.09132]
[1767738432474,0.15349066,93191.0,93181.0,0.010736]
[1767738434778,0.15349066,93191.0,93180.0,0.010736]
[1767738434980,0.05413685,93189.0,93180.0,0.010736]
[1767738436081,0.05413685,93189.0,93181.0,0.010736]
[1767738437690,0.11008781,93199.0,93185.0,0.010736]
[1767738437887,0.09935381,93199.0,93177.0,0.010737]
[1767738438491,0.09935381,93196.0,93182.0,0.010736]
[1767738439289,0.02860746,93210.0,93177.0,0.05479286]
[1767738439290,0.09935381,93206.0,93177.0,0.05479286]
[1767738439485,0.09935381,93202.0,93176.0,0.010737]
[1767738439690,0.15349066,93196.0,93176.0,0.06552986]
[1767738439882,0.09128,93203.0,93182.0,0.010736]
[1767738440086,0.09128,93203.0,93184.0,0.010736]
[1767738440282,0.09128,93203.0,93182.0,0.010736]